fUST/lending_fUST_20240822
["ID","MTS","AMOUNT","RATE_DAILY","PERIOD"]
[335501995,1724284246357,-150.0,0.00027397,7]
[335501996,1724284246367,-501.30056184,0.00027397,7]
[335501997,1724284246379,-500.0,0.00027397,7]
[335501998,1724284246390,-500.0,0.00027397,7]
[335501999,1724284246400,-500.0,0.00027397,7]
[335502000,1724284246411,-209.1932296,0.00027397,7]
[335502001,1724284246421,-21400.2,0.00027397,7]
[335502002,1724284246431,-500.0,0.00027397,7]
[335502003,1724284246442,-500.0,0.00027397,7]
[335502004,1724284246451,-500.0,0.00027397,7]
[335502006,1724284246461,-1818.09,0.00027397,7]
[335502007,1724284246472,-151.0,0.00027397,7]
[335502008,1724284246482,-500.0,0.00027397,7]
[335502009,1724284246492,-151.0,0.00027397,7]
[335502010,1724284246504,-151.0,0.00027397,7]
[335502011,1724284246513,-151.0,0.00027397,7]
[335502012,1724284246524,-500.0,0.00027397,7]
[335502013,1724284246534,-151.0,0.00027397,7]
[335502014,1724284246544,-500.0,0.00027397,7]
[335502015,1724284246555,-2200.36,0.00027397,7]
[335502016,1724284246564,-151.0,0.00027397,7]
[335502017,1724284246575,-151.0,0.00027397,7]
[335502018,1724284246584,-151.0,0.00027397,7]
[335502019,1724284246595,-151.0,0.00027397,7]
[335502020,1724284246604,-500.0,0.00027397,7]
[335502021,1724284246614,-172.790822,0.00027397,7]
[335502022,1724284246623,-500.0,0.00027397,7]
[335502023,1724284246632,-200.0,0.00027397,7]
[335502024,1724284246642,-1259.75,0.00027397,7]
[335502025,1724284246653,-186.891644,0.00027397,7]
[335502026,1724284246663,-500.0,0.00027397,7]
[335502027,1724284246673,-151.0,0.00027397,7]
[335502028,1724284246683,-766.45,0.00027397,7]
[335502029,1724284246693,-151.0,0.00027397,7]
[335502030,1724284246702,-500.0,0.00027397,7]
[335502031,1724284246761,-151.0,0.00027397,7]
[335502032,1724284246770,-744.28,0.00027397,7]
[335502033,1724284246781,-151.0,0.00027397,7]
[335502034,1724284246791,-2834.86,0.00027397,7]
[335502035,1724284246802,-151.0,0.00027397,7]
[335502036,1724284246815,-500.0,0.00027397,7]
[335502037,1724284246827,-1390.38,0.00027397,7]
[335502038,1724284246836,-500.0,0.00027397,7]
[335502039,1724284246849,-500.0,0.00027397,7]
[335502040,1724284246859,-1000.0,0.00027397,7]
[335502041,1724284246868,-500.0,0.00027397,7]
[335502042,1724284246877,-500.0,0.00027397,7]
[335502043,1724284246887,-500.0,0.00027397,7]
[335502044,1724284246897,-500.0,0.00027397,7]
[335502045,1724284246907,-500.0,0.00027397,7]
[335502046,1724284246919,-500.0,0.00027397,7]
[335502047,1724284246932,-500.0,0.00027397,7]
[335502048,1724284246944,-500.0,0.00027397,7]
[335502049,1724284246953,-500.0,0.00027397,7]
[335502050,1724284246962,-500.0,0.00027397,7]
[335502051,1724284246971,-10678.37,0.00027397,7]
[335502052,1724284246980,-2423.5,0.00027397,7]
[335502053,1724284246989,-500.0,0.00027397,7]
[335502054,1724284246998,-500.0,0.00027397,7]
[335502055,1724284247008,-180.86706908,0.00027397,7]
[335502056,1724284247018,-609.60071569,0.00027397,7]
[335502057,1724284247028,-384.90915788,0.00027397,7]
[335502058,1724284247040,-500.0,0.00027397,7]
[335502059,1724284247050,-500.0,0.00027397,7]
[335502060,1724284247059,-273.263067,0.00027397,7]
[335502061,1724284247069,-273.263067,0.00027397,7]
[335502062,1724284247079,-273.263067,0.00027397,7]
[335502063,1724284247089,-500.0,0.00027397,7]
[335502064,1724284247099,-500.0,0.00027397,7]
[335502065,1724284247109,-273.263067,0.00027397,7]
[335502066,1724284247120,-273.263067,0.00027397,7]
[335502067,1724284247130,-822.73,0.00027397,7]
[335502068,1724284247142,-500.0,0.00027397,7]
[335502069,1724284247153,-273.263067,0.00027397,7]
[335502070,1724284247164,-273.263067,0.00027397,7]
[335502071,1724284247174,-151.0,0.00027397,7]
[335502072,1724284247187,-273.263067,0.00027397,7]
[335502073,1724284247198,-151.0,0.00027397,7]
[335502074,1724284247208,-273.263067,0.00027397,7]
[335502075,1724284247220,-151.0,0.00027397,7]
[335502076,1724284247229,-273.263067,0.00027397,7]
[335502077,1724284247241,-500.0,0.00027397,7]
[335502078,1724284247253,-151.0,0.00027397,7]
[335502079,1724284247262,-157.552748,0.00027397,7]
[335502080,1724284247273,-500.0,0.00027397,7]
[335502081,1724284247283,-500.0,0.00027397,7]
[335502082,1724284247292,-151.0,0.00027397,7]
[335502083,1724284247302,-151.0,0.00027397,7]
[335502084,1724284247311,-500.0,0.00027397,7]
[335502085,1724284247322,-500.0,0.00027397,7]
[335502086,1724284247332,-151.0,0.00027397,7]
[335502087,1724284247342,-151.0,0.00027397,7]
[335502088,1724284247353,-518.12874381,0.00027397,7]
[335502089,1724284247363,-151.0,0.00027397,7]
[335502090,1724284247372,-500.0,0.00027397,7]
[335502091,1724284247382,-151.0,0.00027397,7]
[335502092,1724284247394,-151.0,0.00027397,7]
[335502093,1724284247404,-500.0,0.00027397,7]
[335502094,1724284247414,-151.0,0.00027397,7]
[335502095,1724284247424,-500.0,0.00027397,7]
[335502096,1724284247434,-750.99,0.00027397,7]
[335502097,1724284247446,-151.0,0.00027397,7]
[335502098,1724284247457,-151.0,0.00027397,7]
[335502099,1724284247468,-500.0,0.00027397,7]
[335502100,1724284247478,-500.0,0.00027397,7]
[335502101,1724284247488,-500.0,0.00027397,7]
[335502102,1724284247501,-515.56888317,0.00027397,7]
[335502103,1724284247510,-500.0,0.00027397,7]
[335502104,1724284247521,-500.0,0.00027397,7]
[335502105,1724284247530,-2650.74,0.00027397,7]
[335502106,1724284247540,-1094.11,0.00027397,7]
[335502107,1724284247551,-1094.11,0.00027397,7]
[335502108,1724284247561,-1094.11,0.00027397,7]
[335502109,1724284247571,-1094.11,0.00027397,7]
[335502110,1724284247581,-1094.11,0.00027397,7]
[335502111,1724284247591,-1094.11,0.00027397,7]
[335502112,1724284247602,-1094.11,0.00027397,7]
[335502113,1724284247612,-1094.11,0.00027397,7]
[335502114,1724284247621,-1094.11,0.00027397,7]
[335502115,1724284247630,-500.0,0.00027397,7]
[335502116,1724284247639,-1094.11,0.00027397,7]
[335502117,1724284247649,-500.0,0.00027397,7]
[335502118,1724284247659,-1094.11,0.00027397,7]
[335502119,1724284247669,-1094.11,0.00027397,7]
[335502120,1724284247679,-1094.11,0.00027397,7]
[335502121,1724284247688,-1094.11,0.00027397,7]
[335502122,1724284247698,-1094.11,0.00027397,7]
[335502123,1724284247707,-700.32,0.00027397,7]
[335502124,1724284247717,-1094.11,0.00027397,7]
[335502125,1724284247727,-1094.11,0.00027397,7]
[335502126,1724284247737,-500.0,0.00027397,7]
[335502127,1724284247746,-1094.11,0.00027397,7]
[335502128,1724284247764,-1094.11,0.00027397,7]
[335502129,1724284247775,-1094.11,0.00027397,7]
[335502130,1724284247785,-1094.11,0.00027397,7]
[335502131,1724284247796,-1094.11,0.00027397,7]
[335502132,1724284247806,-500.0,0.00027397,7]
[335502133,1724284247819,-1094.11,0.00027397,7]
[335502134,1724284247829,-1094.21051736,0.00027397,7]
[335502135,1724284247840,-500.0,0.00027397,7]
[335502136,1724284247850,-151.0,0.00027397,7]
[335502137,1724284247859,-500.0,0.00027397,7]
[335502138,1724284247869,-151.0,0.00027397,7]
[335502139,1724284247880,-151.0,0.00027397,7]
[335502140,1724284247892,-151.0,0.00027397,7]
[335502141,1724284247901,-1505.18,0.00027397,7]
[335502142,1724284247910,-500.0,0.00027397,7]
[335502143,1724284247919,-151.0,0.00027397,7]
[335502144,1724284247928,-514.23845675,0.00027397,7]
[335502145,1724284247937,-151.0,0.00027397,7]
[335502146,1724284247947,-151.0,0.00027397,7]
[335502147,1724284247958,-279.16335535,0.00027397,7]
[335502148,1724284247967,-151.0,0.00027397,7]
[335502149,1724284247976,-500.0,0.00027397,7]
[335502150,1724284247986,-283.677766,0.00027397,7]
[335502151,1724284247996,-502.78,0.00027397,7]
[335502152,1724284248017,-500.0,0.00027397,7]
[335502153,1724284248027,-500.0,0.00027397,7]
[335502154,1724284248035,-506.65,0.00027397,7]
[335502155,1724284248045,-248.797604,0.00027397,7]
[335502156,1724284248055,-248.797604,0.00027397,7]
[335502157,1724284248067,-248.797604,0.00027397,7]
[335502158,1724284248078,-248.797604,0.00027397,7]
[335502159,1724284248088,-510.08225344,0.00027397,7]
[335502160,1724284248098,-3277.18,0.00027397,7]
[335502161,1724284248108,-2607.57,0.00027397,7]
[335502162,1724284248119,-500.0,0.00027397,7]
[335502163,1724284248130,-500.0,0.00027397,7]
[335502164,1724284248139,-248.797604,0.00027397,7]
[335502165,1724284248149,-248.797604,0.00027397,7]
[335502166,1724284248160,-248.797604,0.00027397,7]
[335502167,1724284248170,-248.797604,0.00027397,7]
[335502168,1724284248180,-500.0,0.00027397,7]
[335502169,1724284248191,-2681.64,0.00027397,7]
[335502170,1724284248201,-500.0,0.00027397,7]
[335502171,1724284248210,-151.0,0.00027397,7]
[335502172,1724284248219,-151.0,0.00027397,7]
[335502173,1724284248228,-151.0,0.00027397,7]
[335502174,1724284248238,-151.0,0.00027397,7]
[335502175,1724284248248,-500.0,0.00027397,7]
[335502176,1724284248261,-151.0,0.00027397,7]
[335502177,1724284248271,-500.0,0.00027397,7]
[335502178,1724284248281,-151.0,0.00027397,7]
[335502179,1724284248291,-882.11,0.00027397,7]
[335502180,1724284248300,-151.0,0.00027397,7]
[335502181,1724284248309,-500.0,0.00027397,7]
[335502182,1724284248319,-198.8934,0.00027397,7]
[335502183,1724284248328,-500.0,0.00027397,7]
[335502184,1724284248337,-500.0,0.00027397,7]
[335502185,1724284248346,-250.99232814,0.00027397,7]
[335502186,1724284248356,-500.0,0.00027397,7]
[335502187,1724284248367,-500.0,0.00027397,7]
[335502188,1724284248377,-1035.29,0.00027397,7]
[335502189,1724284248388,-822.35,0.00027397,7]
[335502190,1724284248398,-268.574498,0.00027397,7]
[335502191,1724284248408,-268.574498,0.00027397,7]
[335502192,1724284248419,-268.574498,0.00027397,7]
[335502193,1724284248430,-500.0,0.00027397,7]
[335502194,1724284248440,-131.42774791,0.00027397,7]
[335502195,1724284248650,-137.14675009,0.00027397,7]
[335502196,1724284248659,-268.574498,0.00027397,7]
[335502197,1724284248669,-268.574498,0.00027397,7]
[335502198,1724284248679,-268.574498,0.00027397,7]
[335502199,1724284248688,-500.0,0.00027397,7]
[335502200,1724284248697,-151.0,0.00027397,7]
[335502201,1724284248706,-31.77481331,0.00027397,7]
[335502202,1724284248993,-1500.0,0.00011712,2]
[335502203,1724284249003,-468.22518669,0.00027397,7]
[335502204,1724284249012,-268.574498,0.00027397,7]
[335502205,1724284249021,-151.0,0.00027397,7]
[335502206,1724284249030,-151.0,0.00027397,7]
[335502207,1724284249040,-151.0,0.00027397,7]
[335502208,1724284249049,-500.0,0.00027397,7]
[335502209,1724284249058,-523.87,0.00027397,7]
[335502210,1724284249068,-3306.83,0.00027397,7]
[335502211,1724284249077,-500.0,0.00027397,7]
[335502212,1724284249086,-611.07,0.00027397,7]
[335502213,1724284249095,-500.0,0.00027397,7]
[335502214,1724284249105,-500.0,0.00027397,7]
[335502215,1724284249113,-151.0,0.00027397,7]
[335502216,1724284249123,-151.0,0.00027397,7]
[335502217,1724284249132,-500.0,0.00027397,7]
[335502218,1724284249141,-151.0,0.00027397,7]
[335502219,1724284249150,-151.0,0.00027397,7]
[335502220,1724284249160,-500.0,0.00027397,7]
[335502221,1724284249169,-151.0,0.00027397,7]
[335502222,1724284249179,-151.0,0.00027397,7]
[335502223,1724284249190,-151.0,0.00027397,7]
[335502224,1724284249199,-290.902704,0.00027397,7]
[335502225,1724284249209,-500.0,0.00027397,7]
[335502226,1724284249218,-500.0,0.00027397,7]
[335502227,1724284249228,-500.0,0.00027397,7]
[335502228,1724284249238,-500.0,0.00027397,7]
[335502229,1724284249247,-500.0,0.00027397,7]
[335502230,1724284249259,-151.0,0.00027397,7]
[335502231,1724284249268,-657.08,0.00027397,7]
[335502232,1724284249277,-894.58,0.00027397,7]
[335502233,1724284249286,-500.0,0.00027397,7]
[335502234,1724284249295,-500.0,0.00027397,7]
[335502235,1724284249304,-378.370658,0.00027397,7]
[335502236,1724284249313,-378.370658,0.00027397,7]
[335502237,1724284249322,-378.370658,0.00027397,7]
[335502238,1724284249332,-495.94265711,0.00027397,7]
[335502239,1724284249342,-378.370658,0.00027397,7]
[335502240,1724284249351,-378.370658,0.00027397,7]
[335502241,1724284249360,-378.370658,0.00027397,7]
[335502242,1724284249369,-378.370658,0.00027397,7]
[335502243,1724284249378,-378.370658,0.00027397,7]
[335502244,1724284249387,-500.0,0.00027397,7]
[335502245,1724284249396,-3000.0,0.00027397,21]
[335502246,1724284249406,-500.0,0.00027397,7]
[335502247,1724284249415,-500.0,0.00027397,7]
[335502248,1724284249424,-500.0,0.00027397,7]
[335502249,1724284249434,-500.0,0.00027397,7]
[335502250,1724284249444,-8776.67,0.00027397,7]
[335502251,1724284249453,-8776.67,0.00027397,7]
[335502252,1724284249462,-8776.67,0.00027397,7]
[335502253,1724284249472,-8776.67,0.00027397,7]
[335502254,1724284249481,-500.0,0.00027397,7]
[335502255,1724284249491,-8776.67,0.00027397,7]
[335502256,1724284249500,-8776.67,0.00027397,7]
[335502257,1724284249510,-8776.67,0.00027397,7]
[335502258,1724284249519,-8776.67,0.00027397,7]
[335502259,1724284249528,-500.0,0.00027397,7]
[335502260,1724284249538,-8776.67,0.00027397,7]
[335502261,1724284249548,-8776.67,0.00027397,7]
[335502262,1724284249557,-8776.67,0.00027397,7]
[335502263,1724284249567,-500.0,0.00027397,7]
[335502264,1724284249576,-8776.67,0.00027397,7]
[335502265,1724284249587,-8776.67,0.00027397,7]
[335502266,1724284249596,-8776.67,0.00027397,7]
[335502267,1724284249605,-500.0,0.00027397,7]
[335502268,1724284249615,-500.0,0.00027397,7]
[335502269,1724284249624,-8776.67,0.00027397,7]
[335502270,1724284249634,-8776.67,0.00027397,7]
[335502271,1724284249644,-8776.67,0.00027397,7]
[335502272,1724284249655,-8776.67,0.00027397,7]
[335502273,1724284249664,-549.77,0.00027397,7]
[335502274,1724284249675,-8776.67,0.00027397,7]
[335502275,1724284249685,-8776.67,0.00027397,7]
[335502276,1724284249695,-546.98,0.00027397,7]
[335502277,1724284249707,-8776.67,0.00027397,7]
[335502278,1724284249718,-1854.08,0.00027397,7]
[335502279,1724284249727,-8776.67,0.00027397,7]
[335502280,1724284249737,-8776.67,0.00027397,7]
[335502281,1724284249747,-8776.67262136,0.00027397,7]
[335502282,1724284249756,-500.0,0.00027397,7]
[335502283,1724284249766,-5642.78,0.00027397,7]
[335502284,1724284249776,-500.0,0.00027397,7]
[335502285,1724284249785,-592.29,0.00027397,7]
[335502286,1724284249797,-151.0,0.00027397,7]
[335502287,1724284249808,-151.0,0.00027397,7]
[335502288,1724284249819,-151.0,0.00027397,7]
[335502289,1724284249829,-151.0,0.00027397,7]
[335502290,1724284249839,-500.0,0.00027397,7]
[335502291,1724284249848,-697.23,0.00027397,7]
[335502292,1724284249858,-1632.53,0.00027397,7]
[335502293,1724284249867,-500.0,0.00027397,7]
[335502294,1724284249877,-500.0,0.00027397,7]
[335502295,1724284249888,-196.336077,0.00027397,7]
[335502296,1724284249897,-196.336077,0.00027397,7]
[335502297,1724284249907,-500.0,0.00027397,7]
[335502298,1724284249916,-196.336077,0.00027397,7]
[335502299,1724284249926,-196.336077,0.00027397,7]
[335502300,1724284249935,-500.0,0.00027397,7]
[335502301,1724284249944,-500.0,0.00027397,7]
[335502302,1724284249954,-196.336077,0.00027397,7]
[335502303,1724284249964,-2394.64,0.00027397,7]
[335502304,1724284249973,-500.0,0.00027397,7]
[335502305,1724284249983,-196.336077,0.00027397,7]
[335502306,1724284249993,-196.336077,0.00027397,7]
[335502307,1724284250002,-196.336077,0.00027397,7]
[335502308,1724284250012,-500.0,0.00027397,7]
[335502309,1724284250024,-500.0,0.00027397,7]
[335502310,1724284250033,-500.0,0.00027397,7]
[335502311,1724284250044,-500.0,0.00027397,7]
[335502312,1724284250056,-500.0,0.00027397,7]
[335502313,1724284250066,-1089.24,0.00027397,7]
[335502314,1724284250076,-500.0,0.00027397,7]
[335502315,1724284250086,-500.0,0.00027397,7]
[335502316,1724284250096,-500.0,0.00027397,7]
[335502317,1724284250106,-458.52393766,0.00027397,7]
[335502318,1724284250115,-192.79525293,0.00027397,7]
[335502319,1724284250125,-500.0,0.00027397,7]
[335502320,1724284250135,-500.0,0.00027397,7]
[335502321,1724284250144,-729.18,0.00027397,7]
[335502322,1724284250153,-245.3598766,0.00027397,7]
[335502323,1724284250163,-619.49,0.00027397,7]
[335502324,1724284250173,-500.0,0.00027397,2]
[335502325,1724284250183,-500.0,0.00027397,7]
[335502326,1724284250192,-500.0,0.00027397,7]
[335502327,1724284250202,-500.0,0.00027397,7]
[335502328,1724284250211,-500.0,0.00027397,7]
[335502329,1724284250221,-500.0,0.00027397,7]
[335502330,1724284250231,-537.3,0.00027397,7]
[335502331,1724284250241,-500.0,0.00027397,7]
[335502332,1724284250250,-832.85,0.00027397,7]
[335502333,1724284250261,-500.0,0.00027397,7]
[335502334,1724284250271,-500.0,0.00027397,7]
[335502335,1724284250281,-500.0,0.00027397,7]
[335502336,1724284250290,-2248.77,0.00027397,7]
[335502337,1724284250300,-500.0,0.00027397,7]
[335502338,1724284250311,-777.94,0.00027397,7]
[335502339,1724284250322,-500.0,0.00027397,7]
[335502340,1724284250332,-500.0,0.00027397,7]
[335502341,1724284250343,-500.0,0.00027397,7]
[335502342,1724284250352,-500.0,0.00027397,7]
[335502343,1724284250362,-548.59,0.00027397,7]
[335502344,1724284250372,-151.0,0.00027397,7]
[335502345,1724284250382,-151.0,0.00027397,7]
[335502346,1724284250392,-150.112235,0.000274,6]
[335502347,1724284250401,-192.657792,0.000274,7]
[335502348,1724284250411,-151.0,0.000274,7]
[335502349,1724284250421,-150.112233,0.000276,10]
[335502350,1724284250431,-151.0,0.00027661,7]
[335502351,1724284250440,-151.0,0.00027661,7]
[335502352,1724284250450,-151.0,0.00027661,7]
[335502353,1724284250459,-160.0,0.0002767,10]
[335502354,1724284250469,-160.0,0.0002767,10]
[335502355,1724284250478,-151.0,0.0002767,7]
[335502356,1724284250488,-378.370658,0.0002767,7]
[335502357,1724284250498,-378.370658,0.0002767,7]
[335502358,1724284250509,-183.52659392,0.0002767,7]
[335502359,1724284250524,-47.09729808,0.0002767,7]
[335502360,1724284250534,-196.336077,0.0002767,7]
[335502361,1724284250544,-196.336077,0.0002767,7]
[335502362,1724284250555,-500.0,0.00027671,7]
[335502363,1724284250565,-500.0,0.00027671,7]
[335502364,1724284250574,-500.0,0.00027671,7]
[335502365,1724284250584,-500.0,0.00027671,7]
[335502366,1724284250593,-500.0,0.00027671,7]
[335502367,1724284250603,-500.0,0.00027671,7]
[335502368,1724284250613,-500.0,0.00027671,7]
[335502369,1724284250622,-500.0,0.00027671,7]
[335502370,1724284250632,-530.3206889,0.00027671,7]
[335502371,1724284250642,-500.0,0.00027671,7]
[335502372,1724284250651,-500.0,0.00027671,7]
[335502373,1724284250663,-500.0,0.00027671,7]
[335502374,1724284250672,-552.58567458,0.00027671,7]
[335502375,1724284250682,-500.0,0.00027671,7]
[335502376,1724284250692,-538.93126061,0.00027671,7]
[335502377,1724284250702,-500.0,0.00027671,7]
[335502378,1724284250711,-500.0,0.00027671,7]
[335502379,1724284250720,-500.0,0.00027671,7]
[335502380,1724284250729,-500.0,0.00027671,7]
[335502381,1724284250739,-516.32103639,0.00027671,7]
[335502382,1724284250748,-500.0,0.00027671,7]
[335502383,1724284250759,-345.1294237,0.00027671,7]
[335502384,1724284250769,-500.0,0.00027671,7]
[335502385,1724284250778,-500.0,0.00027671,7]
[335502386,1724284250788,-500.0,0.00027671,7]
[335502387,1724284250799,-500.0,0.00027671,7]
[335502388,1724284250809,-500.0,0.00027671,7]
[335502389,1724284250819,-500.0,0.00027671,7]
[335502390,1724284250829,-500.0,0.00027671,7]
[335502391,1724284250839,-500.0,0.00027671,7]
[335502392,1724284250848,-500.0,0.00027671,7]
[335502393,1724284250857,-500.0,0.00027671,7]
[335502394,1724284250867,-507.41495129,0.00027671,7]
[335502395,1724284250876,-500.0,0.00027671,7]
[335502396,1724284250887,-642.10457207,0.00027671,7]
[335502397,1724284250897,-500.0,0.00027671,2]
[335502398,1724284250907,-256.32996422,0.00027671,7]
[335502399,1724284609374,851.03180948,9.899e-05,2]
[335502404,1724284877267,8350.06256304,9.899e-05,2]
[335502410,1724284989110,189.2101249,9.899e-05,2]
[335502499,1724285279292,309.39667648,9.899e-05,2]
[335502551,1724285432651,-223.52112672,0.0001026,2]
[335502552,1724285432662,-251.9504428,0.00010469,2]
[335502553,1724285432673,-446.8476032,0.00010548,2]
[335502554,1724285432687,-250.0,0.00011099,2]
[335502555,1724285432698,-250.0,0.0001113,2]
[335502556,1724285432709,-250.0,0.0001116,2]
[335502557,1724285432719,-250.0,0.00011191,2]
[335502558,1724285432731,-250.0,0.00011221,2]
[335502559,1724285432742,-250.0,0.00011251,2]
[335502560,1724285432754,-250.0,0.00011282,2]
[335502561,1724285432766,-250.0,0.00011312,2]
[335502562,1724285432778,-250.0,0.00011343,2]
[335502563,1724285432789,-250.0,0.00011373,2]
[335502564,1724285432800,-250.0,0.00011404,2]
[335502565,1724285432812,-250.0,0.00011434,2]
[335502566,1724285432823,-250.0,0.00011465,2]
[335502567,1724285432833,-250.0,0.00011495,2]
[335502568,1724285432845,-250.0,0.00011525,2]
[335502569,1724285432856,-250.0,0.00011556,2]
[335502570,1724285432867,-250.0,0.00011586,2]
[335502571,1724285432880,-250.0,0.00011617,2]
[335502572,1724285432891,-534.52389159,0.00011621,2]
[335502573,1724285432904,-250.0,0.00011647,2]
[335502574,1724285432916,-250.0,0.00011678,2]
[335502575,1724285432927,-20790.68722811,0.00011712,2]
[335502576,1724285432939,-300.0,0.00011712,2]
[335502577,1724285432952,-8032.13744869,0.00011905,2]
[335502578,1724285432965,-16867.86255131,0.00011905,2]
[335502579,1724285432975,-680.8284645,0.00012012,2]
[335502580,1724285432985,-207.27453793,0.00012326,2]
[335502581,1724285432996,-2596.21956265,0.00012356,2]
[335502582,1724285433006,-2442.68303719,0.00012516,2]
[335502592,1724285438511,-546.46797809,0.00011894,2]
[335502593,1724285438521,-35.9495603,0.00012551,2]
[335502594,1724285438648,-1577.68437102,0.00012551,2]
[335502595,1724285438657,-1121.1363307,0.00012629,2]
[335502596,1724285438668,-813.2456491,0.00012782,2]
[335502597,1724285438677,-420.0,0.00012883,2]
[335502598,1724285438687,-914.51129481,0.00012898,2]
[335502599,1724285438697,-448.06710199,0.00012898,2]
[335502600,1724285438715,-464.26186694,0.00012898,2]
[335502601,1724285438725,-221.22133175,0.00012898,2]
[335502602,1724285438734,-2116.01210221,0.000129,2]
[335502603,1724285438744,-188.62270154,0.00012934,2]
[335502604,1724285438754,-269.88644408,0.00012971,7]
[335502605,1724285438764,-200.42308853,0.00012971,2]
[335502606,1724285438774,-161.23776344,0.00012991,2]
[335502607,1724285438784,-192.04035813,0.00013397,2]
[335502608,1724285438794,-495.24472626,0.00013599,2]
[335502609,1724285438804,-154.8783574,0.00013698,2]
[335502610,1724285438814,-187.1751066,0.00013698,2]
[335502611,1724285438823,-365.70010369,0.00013698,2]
[335502612,1724285438833,-283.51418639,0.00013698,2]
[335502613,1724285438843,-3000.0,0.00013699,2]
[335502614,1724285438853,-1603.869581,0.00013699,2]
[335502615,1724285438863,-104.63589659,0.00013699,2]
[335502616,1724285438876,-90.19475455,0.00013699,2]
[335502617,1724285438886,-500.0,0.00013699,2]
[335502618,1724285438900,-500.0,0.00013699,2]
[335502619,1724285438910,-500.0,0.00013699,2]
[335502620,1724285438921,-354.31728937,0.00013699,2]
[335502621,1724285438933,-49.94923878,0.00013699,2]
[335502622,1724285438944,-287.0,0.00014171,2]
[335502623,1724285438956,-164.301868,0.00014247,2]
[335502624,1724285438966,-326.896661,0.00014247,2]
[335502625,1724285438975,-216.6891821,0.00014589,2]
[335502626,1724285438985,-2116.01210215,0.00015185,2]
[335502627,1724285438995,-483.90562044,0.00017219,2]
[335502628,1724285439005,-465.94528102,0.0001808,2]
[335502629,1724285439015,-2116.01210215,0.00018471,2]
[335502630,1724285439027,-465.04726405,0.00018984,2]
[335502631,1724285439039,-164.6911495,0.00019178,2]
[335502632,1724285439049,-163.026368,0.00019178,2]
[335502633,1724285439060,-251.0,0.00019178,2]
[335502634,1724285439071,-465.0023632,0.00019933,2]
[335502635,1724285439082,-4006.28105007,0.0002,2]
[335502647,1724285441030,-850.79647025,0.00012989,2]
[335502648,1724285441040,-87.71619655,0.0002,2]
[335502649,1724285441051,-156.66298998,0.0002,2]
[335502650,1724285441062,-435.0,0.0002,2]
[335502651,1724285441073,-5327.81921818,0.0002,2]
[335502652,1724285441083,-285.48087373,0.0002,2]
[335502653,1724285441094,-172.08510632,0.0002,2]
[335502654,1724285441105,-1034.71238387,0.0002,2]
[335502655,1724285441115,-500.0,0.00020198,2]
[335502656,1724285441124,-1603.869581,0.00020548,2]
[335502657,1724285441136,-326.896661,0.00020707,2]
[335502658,1724285441147,-183.32510841,0.00021113,2]
[335502659,1724285441157,-309.10348645,0.00021135,2]
[335502660,1724285441168,-500.0,0.00021261,2]
[335502661,1724285441183,-2116.01210215,0.00021757,2]
[335502662,1724285441194,-69407.6567592,0.00021908,3]
[335502663,1724285441208,-8883.9076584,0.00021918,2]